bitfinex/quotes_ETHUSD_20250524
["timestamp","ask_amount","ask_price","bid_price","bid_amount"]
[1748099861743,17.47558257,2556.6,2556.5,51.457]
[1748099861952,13.36158257,2556.6,2556.5,51.457]
[1748099862331,13.36158257,2556.6,2556.5,33.26716601]
[1748099862725,12.9965491,2556.6,2556.5,33.26816601]
[1748099863019,13.36157921,2556.6,2556.5,33.26816601]
[1748099863261,13.36157921,2556.6,2556.5,6.69116601]
[1748099863627,12.9965491,2556.6,2556.5,33.26816601]
[1748099864051,13.361581,2556.6,2556.5,33.26816601]
[1748099864827,13.361581,2556.6,2556.5,34.02586601]
[1748099865023,10.17647678,2556.6,2556.5,34.02586601]
[1748099865228,10.17645885,2556.6,2556.5,34.02586601]
[1748099866063,9.81144488,2556.6,2556.5,34.02586601]
[1748099866360,10.17645879,2556.6,2556.5,6.69116601]
[1748099866665,13.36144094,2556.6,2556.5,33.26016601]
[1748099867327,12.99642703,2556.6,2556.5,33.26016601]
[1748099867525,13.36145189,2556.6,2556.5,33.26016601]
[1748099868131,12.99642703,2556.6,2556.5,33.26016601]
[1748099868455,13.36146073,2556.6,2556.5,33.26016601]
[1748099869153,13.36145949,2556.6,2556.5,33.26016601]
[1748099870144,12.99642703,2556.6,2556.5,33.26016601]
[1748099870326,13.36145824,2556.6,2556.5,33.26016601]
[1748099871433,12.99642703,2556.6,2556.5,33.26016601]
[1748099871632,13.36163588,2556.6,2556.5,33.26016601]
[1748099872772,13.36163588,2556.6,2556.5,21.53516601]
[1748099872931,12.99642703,2556.6,2556.5,33.26016601]
[1748099873132,24.71013265,2556.6,2556.5,6.69116601]
[1748099873365,3.91190392,2556.3,2556.2,16.884]
[1748099873537,3.91190392,2556.3,2556.2,43.453]
[1748099873538,5.74336038,2556.3,2556.2,43.453]
[1748099873737,3.91190392,2556.3,2556.2,43.453]
[1748099873944,3.91190392,2556.3,2556.2,51.453]
[1748099874149,10.17816454,2556.3,2556.2,51.453]
[1748099875371,9.81190392,2556.3,2556.2,51.453]
[1748099875541,10.17816234,2556.3,2556.2,51.453]
[1748099876260,9.81190392,2556.3,2556.2,51.453]
[1748099876585,10.17816143,2556.3,2556.2,51.453]
[1748099877033,12.3948183,2556.3,2556.2,39.728]
[1748099877238,14.22627476,2556.3,2556.2,51.453]
[1748099877439,13.86001725,2556.3,2556.2,51.453]
[1748099877738,14.22630219,2556.3,2556.2,51.453]
[1748099878349,13.86001725,2556.3,2556.2,51.453]
[1748099878573,12.39483393,2556.3,2556.2,51.453]
[1748099878871,10.17817706,2556.3,2556.2,51.453]
[1748099879269,9.81190392,2556.3,2556.2,51.453]
[1748099879572,10.17815668,2556.3,2556.2,51.453]
[1748099880275,9.81190392,2556.3,2556.2,51.453]
[1748099880479,10.17816136,2556.3,2556.2,51.453]
[1748099880846,10.17816136,2556.3,2556.2,52.2832]
[1748099881454,10.17813678,2556.3,2556.2,40.5582]
[1748099881757,12.35864158,2556.3,2556.2,51.454]
[1748099882340,11.99240872,2556.3,2556.2,51.454]
[1748099882577,12.3586681,2556.3,2556.2,51.454]
[1748099883281,11.99240872,2556.3,2556.2,51.454]
[1748099883579,12.35867066,2556.3,2556.2,24.884]
[1748099883754,10.17816586,2556.3,2556.2,51.456]
[1748099883943,10.17816586,2556.3,2556.2,52.2862]
[1748099884669,10.17815185,2556.3,2556.2,52.2862]
[1748099885536,9.81190392,2556.3,2556.2,52.2862]
[1748099885736,10.17799473,2556.3,2556.2,52.2862]
[1748099885936,10.17799473,2556.3,2556.2,52.2852]
[1748099886176,12.17533968,2556.3,2556.2,52.2852]
[1748099886761,10.17804545,2556.3,2556.2,52.2852]
[1748099887689,9.81190392,2556.3,2556.2,52.2852]
[1748099887891,10.17803344,2556.3,2556.2,52.2852]
[1748099888694,9.81190392,2556.3,2556.2,52.2852]
[1748099888860,10.1780353,2556.3,2556.2,52.2852]
[1748099889561,9.81190392,2556.3,2556.2,52.2852]
[1748099889860,10.17802063,2556.3,2556.2,52.2852]
[1748099890555,9.81190392,2556.3,2556.2,52.2852]
[1748099890869,10.17802295,2556.3,2556.2,52.2852]
[1748099891693,9.81190392,2556.3,2556.2,52.2852]
[1748099891893,10.17802426,2556.3,2556.2,52.2852]
[1748099892577,9.81190392,2556.3,2556.2,52.2852]
[1748099892892,10.17802221,2556.3,2556.2,52.2852]
[1748099893994,10.17802173,2556.3,2556.2,52.2852]
[1748099894905,9.81190392,2556.3,2556.2,52.2852]
[1748099895114,10.1780226,2556.3,2556.2,52.2852]
[1748099895686,10.1780226,2556.3,2556.2,40.5592]
[1748099895884,12.17537034,2556.3,2556.2,52.2852]
[1748099896283,12.17537903,2556.3,2556.2,52.2852]
[1748099897013,11.80925166,2556.3,2556.2,52.2852]
[1748099897215,10.1780253,2556.3,2556.2,40.5592]
[1748099897423,10.1780253,2556.3,2556.2,51.455]
[1748099897869,10.17802977,2556.3,2556.2,51.455]
[1748099898801,3.91190392,2556.3,2556.2,52.2069]
[1748099898985,4.27807262,2556.3,2556.2,52.2069]
[1748099899865,3.91190392,2556.3,2556.2,52.2069]
[1748099900068,4.27805725,2556.3,2556.2,52.2069]
[1748099900697,4.27805725,2556.3,2556.2,25.6359]
[1748099900904,4.27805725,2556.3,2556.2,52.1969]
[1748099901202,4.27805148,2556.3,2556.2,52.1969]
[1748099901995,4.27805269,2556.3,2556.2,52.1969]
[1748099904031,3.91156559,2556.6,2556.4,0.7519]
[1748099904190,1.97210603,2556.7,2556.6,8.7519]
[1748099904890,5.88339792,2556.7,2556.6,8.7519]
[1748099907119,3.91129189,2556.7,2556.6,8.7519]
[1748099910918,3.91129189,2556.7,2556.6,20.4749]
[1748099915394,3.91129189,2556.7,2556.6,8.7519]
[1748099915722,3.91129189,2556.7,2556.6,20.4739]
[1748099918826,3.91129189,2556.7,2556.6,8.7519]
[1748099919047,3.91190392,2556.3,2556.2,16.884]
[1748099919207,3.91190392,2556.3,2556.2,51.435]
[1748099919406,3.91190392,2556.3,2556.2,52.1878]
[1748099920687,3.91190392,2556.3,2556.2,52.1888]
[1748099924874,3.91182663,2556.4,2556.3,8.0]
[1748099925051,3.91168169,2556.5,2556.4,0.7938]
[1748099925552,9.81109877,2556.9,2556.4,0.7938]
[1748099925553,5.9,2556.9,2556.4,0.7938]
[1748099925723,3.9114324,2556.7,2556.4,0.7938]
[1748099925922,5.9,2556.9,2556.4,0.7938]
[1748099926150,3.91153719,2556.6,2556.4,0.7938]
[1748099927262,3.91125163,2556.8,2556.4,0.7938]
[1748099927549,3.91054529,2557.2,2556.5,0.7931]
[1748099927757,3.91137332,2556.7,2556.6,11.722]
[1748099928062,3.91137332,2556.7,2556.6,34.539]
[1748099928358,3.91137332,2556.7,2556.6,35.3321]
[1748099930176,3.91129189,2556.7,2556.6,35.3321]
[1748099931823,3.91129189,2556.7,2556.6,52.2111]
[1748099938078,3.91129189,2556.7,2556.6,52.2101]
[1748099939760,3.91129189,2556.7,2556.6,24.879]
[1748099939989,3.91129189,2556.7,2556.6,51.415]
[1748099943264,3.91129189,2556.7,2556.6,52.2236]
[1748099943965,3.91119719,2556.8,2556.7,8.0]
[1748099944162,0.8164,2557.3,2556.7,8.0]
[1748099944337,0.8164,2557.7,2556.8,0.8086]
[1748099944538,3.91044902,2557.3,2557.0,0.8086]
[1748099944786,3.91010757,2557.5,2557.2,8.0]
[1748099944935,3.91031687,2557.4,2557.3,0.8086]
[1748099946279,3.91037422,2557.3,2557.2,8.0]
[1748099946783,3.910833,2557.0,2556.9,0.7647]
[1748099947079,3.910833,2557.0,2556.9,8.7647]
[1748099947302,3.910833,2557.0,2556.9,34.536]
[1748099948783,3.91129189,2556.7,2556.6,16.879]
[1748099948988,3.91129189,2556.7,2556.6,51.414]
[1748099956895,0.8221,2557.4,2556.7,8.7735]
[1748099957063,3.91091372,2557.0,2556.7,8.7735]
[1748099957897,3.91101986,2556.9,2556.7,8.7735]
[1748099958191,3.91092448,2557.0,2556.7,8.7735]
[1748099958558,3.91058495,2557.2,2557.0,0.7735]
[1748099958759,3.91037422,2557.3,2557.2,8.0]
[1748099963193,3.91037422,2557.3,2557.2,8.7698]
[1748099968107,3.91037422,2557.3,2557.2,8.0]
[1748099968427,3.91037422,2557.3,2557.2,19.719]
[1748099974033,3.91037422,2557.3,2557.2,36.593]
[1748099975142,3.91037422,2557.3,2557.2,36.592]
[1748099976533,3.91037422,2557.3,2557.2,24.874]
[1748099976694,5.49243604,2557.3,2557.2,51.393]
[1748099976900,5.49243604,2557.3,2557.2,39.675]
[1748099977398,5.49243604,2557.3,2557.2,51.393]
[1748099979012,5.49243604,2557.3,2557.2,24.874]
[1748099979302,5.49243604,2557.3,2557.2,43.393]
[1748099979506,5.49243604,2557.3,2557.2,51.393]
[1748099980025,5.85708273,2557.3,2557.2,43.393]
[1748099980214,5.85708273,2557.3,2557.2,51.393]
[1748099980832,5.49243604,2557.3,2557.2,51.393]
[1748099980996,5.85708108,2557.3,2557.2,51.393]
[1748099981495,5.85708108,2557.3,2557.2,51.394]
[1748099981693,5.85708031,2557.3,2557.2,51.394]
[1748099982299,5.85708031,2557.3,2557.2,39.675]
[1748099982631,5.85708031,2557.3,2557.2,51.394]
[1748099983134,5.8570804,2557.3,2557.2,51.394]
[1748099983332,13.58853686,2557.3,2557.2,31.676]
[1748099983636,13.58853686,2557.3,2557.2,39.676]
[1748099983795,13.58853686,2557.3,2557.2,31.676]
[1748099983995,13.2238925,2557.3,2557.2,31.676]
[1748099984226,13.2238925,2557.3,2557.2,39.676]
[1748099984435,13.58860281,2557.3,2557.2,39.676]
[1748099985510,13.2238925,2557.3,2557.2,39.676]
[1748099985701,13.5885963,2557.3,2557.2,39.676]
[1748099985920,15.16005046,2557.3,2557.2,39.676]
[1748099986121,15.16005046,2557.3,2557.2,51.395]
[1748099986324,14.79534666,2557.3,2557.2,26.521]
[1748099986540,15.15822175,2557.3,2557.2,26.521]
[1748099987236,14.79534666,2557.3,2557.2,26.521]
[1748099987406,15.15822439,2557.3,2557.2,26.521]
[1748099987844,17.12806721,2557.3,2557.2,26.521]
[1748099988137,17.12806721,2557.3,2557.2,14.802]
[1748099988317,17.12806721,2557.3,2557.2,34.522]
[1748099988842,16.76518948,2557.3,2557.2,34.522]
[1748099989009,17.12806638,2557.3,2557.2,34.522]
[1748099989841,17.12807244,2557.3,2557.2,34.522]
[1748099990144,13.58677546,2557.3,2557.2,34.522]
[1748099991043,13.58677546,2557.3,2557.2,8.0]
[1748099991742,13.2238925,2557.3,2557.2,8.0]
[1748099992050,13.58679616,2557.3,2557.2,8.0]
[1748099992742,15.55663898,2557.3,2557.2,8.0]
[1748099993231,15.19373532,2557.3,2557.2,8.0]
[1748099993406,15.55663511,2557.3,2557.2,8.0]
[1748099994347,15.19373532,2557.3,2557.2,8.0]
[1748099994644,15.55663834,2557.3,2557.2,8.0]
[1748099995339,13.2238925,2557.3,2557.2,8.0]
[1748099995563,13.58679526,2557.3,2557.2,8.0]
[1748099996165,17.7007955,2557.3,2557.2,8.0]
[1748099996328,13.5867955,2557.3,2557.2,8.0]
[1748099997011,13.2238925,2557.3,2557.2,8.0]
[1748099997344,13.58679588,2557.3,2557.2,8.0]
[1748099998055,13.58679576,2557.3,2557.2,8.0]
[1748099998346,14.13679576,2557.3,2557.2,8.0]
[1748099998908,12.3053393,2557.3,2557.2,8.0]
[1748099999159,14.13679071,2557.3,2557.2,8.0]
[1748100000071,13.7738925,2557.3,2557.2,8.0]
[1748100000235,14.137448,2557.3,2557.2,8.0]
[1748100000854,24.18481741,2557.3,2557.2,8.0]
[1748100001138,24.1875633,2557.3,2557.2,8.0]
[1748100001791,23.82126191,2557.3,2557.2,8.0]
[1748100001950,24.18755503,2557.3,2557.2,8.0]
[1748100002278,10.36052713,2557.2,2557.1,14.793]
[1748100002483,10.36052713,2557.2,2556.1,0.8651]
[1748100002484,3.91205695,2556.2,2556.1,0.05]
[1748100002682,9.81205695,2556.2,2556.1,14.843]
[1748100002841,10.17842794,2556.2,2556.1,26.566]
[1748100003040,10.17842794,2556.2,2556.1,34.566]
[1748100003678,10.17842794,2556.2,2556.1,26.566]
[1748100003877,9.81205695,2556.2,2556.1,34.566]
[1748100004175,10.17843741,2556.2,2556.1,34.566]
[1748100004748,10.17843741,2556.2,2556.1,22.843]
[1748100004951,10.17843741,2556.2,2556.1,34.567]
[1748100005345,11.57415243,2556.2,2556.1,34.567]
[1748100005648,11.20777197,2556.2,2556.1,34.567]
[1748100005869,11.57415556,2556.2,2556.1,34.567]
[1748100006450,11.57415556,2556.2,2556.1,22.843]
[1748100006982,11.57415675,2556.2,2556.1,22.843]
[1748100007880,11.57415556,2556.2,2556.1,22.843]
[1748100008793,11.20777197,2556.2,2556.1,22.843]
[1748100008996,11.57416714,2556.2,2556.1,14.843]
[1748100009175,11.57416714,2556.2,2556.1,22.843]
[1748100009977,11.20777197,2556.2,2556.1,22.843]
[1748100010163,11.57417874,2556.2,2556.1,22.843]
[1748100012199,11.20777197,2556.2,2556.1,22.843]
[1748100012404,11.57220474,2556.2,2556.1,34.568]
[1748100012708,10.17648972,2556.2,2556.1,34.568]
[1748100013304,10.17649129,2556.2,2556.1,34.568]
[1748100014072,9.81205695,2556.2,2556.1,34.568]
[1748100022216,3.91205695,2556.2,2556.1,35.3551]
[1748100028225,3.91169135,2556.5,2556.1,35.3551]
[1748100028226,3.91175089,2556.4,2556.3,0.7972]
[1748100036516,3.91175089,2556.4,2556.3,8.7972]
[1748100036704,3.91205695,2556.2,2556.1,0.05]
[1748100036915,3.91205695,2556.2,2556.1,14.831]
[1748100037115,3.91205695,2556.2,2556.1,26.555]
[1748100037324,3.91205695,2556.2,2556.1,34.555]
[1748100037643,3.91205695,2556.2,2556.1,26.555]
[1748100038138,3.91205695,2556.2,2556.1,34.554]
[1748100038345,3.91205695,2556.2,2556.1,22.831]
[1748100038542,5.88183049,2556.2,2556.1,26.554]
[1748100038745,5.88183049,2556.2,2556.1,8.05]
[1748100038948,5.88183049,2556.2,2556.1,22.831]
[1748100039113,6.24697156,2556.2,2556.1,22.831]
[1748100039745,6.24697156,2556.2,2556.1,14.831]
[1748100039746,5.88183049,2556.2,2556.1,14.831]
[1748100040042,6.24697268,2556.2,2556.1,22.831]
[1748100040544,6.25037268,2556.2,2556.1,14.831]
[1748100040710,6.25037268,2556.2,2556.1,22.831]
[1748100041044,5.88523049,2556.2,2556.1,22.831]
[1748100041211,6.25071966,2556.2,2556.1,22.831]
[1748100041712,12.15071966,2556.2,2556.1,22.831]
[1748100042336,11.78523049,2556.2,2556.1,22.831]
[1748100042534,12.15067158,2556.2,2556.1,22.831]
[1748100043426,11.78523049,2556.2,2556.1,22.831]
[1748100043944,12.15067564,2556.2,2556.1,22.831]
[1748100044147,12.15067564,2556.2,2556.1,14.831]
[1748100044347,12.70067564,2556.2,2556.1,14.831]
[1748100044949,12.33523049,2556.2,2556.1,14.831]
[1748100045350,12.70071058,2556.2,2556.1,14.831]
[1748100045940,12.70071226,2556.2,2556.1,14.831]
[1748100046646,3.91221,2556.1,2556.0,16.881]
[1748100046954,8.34477824,2556.1,2556.0,31.665]
[1748100047155,8.34477824,2556.1,2556.0,39.665]
[1748100048712,7.97929709,2556.1,2556.0,39.665]
[1748100048916,8.34477062,2556.1,2556.0,39.665]
[1748100049753,7.97929709,2556.1,2556.0,39.665]
[1748100050049,8.34477331,2556.1,2556.0,39.665]
[1748100050717,7.97929709,2556.1,2556.0,39.665]
[1748100050916,8.34477357,2556.1,2556.0,39.665]
[1748100051844,7.97929709,2556.1,2556.0,39.665]
[1748100052015,8.3447495,2556.1,2556.0,39.665]
[1748100052746,7.97929709,2556.1,2556.0,39.665]
[1748100052951,8.34475487,2556.1,2556.0,39.665]
[1748100053653,7.97929709,2556.1,2556.0,39.665]
[1748100053953,8.34475484,2556.1,2556.0,39.665]
[1748100055047,8.34444487,2556.1,2556.0,39.665]
[1748100055843,8.34445142,2556.1,2556.0,39.665]
[1748100057224,7.97929709,2556.1,2556.0,39.665]
[1748100057424,8.34492049,2556.1,2556.0,39.665]
[1748100058338,8.34492049,2556.1,2556.0,51.392]
[1748100058733,7.97929709,2556.1,2556.0,51.392]
[1748100058933,8.34492496,2556.1,2556.0,51.392]
[1748100059737,14.24492496,2556.1,2556.0,51.392]
[1748100059933,13.87929709,2556.1,2556.0,51.392]
[1748100060138,14.24492496,2556.1,2556.0,51.392]
[1748100060847,14.24492496,2556.1,2556.0,39.665]
[1748100061018,13.87929709,2556.1,2556.0,39.665]
[1748100061224,14.2449384,2556.1,2556.0,39.665]
[1748100061837,14.24492954,2556.1,2556.0,39.665]
[1748100063263,14.24492948,2556.1,2556.0,39.665]
[1748100064139,13.87929709,2556.1,2556.0,39.665]
[1748100064340,14.24492613,2556.1,2556.0,39.665]
[1748100064927,13.87929709,2556.1,2556.0,39.665]
[1748100065129,14.24492368,2556.1,2556.0,39.665]
[1748100066069,13.87929709,2556.1,2556.0,39.665]
[1748100066243,14.24492363,2556.1,2556.0,39.665]
[1748100066867,14.24492364,2556.1,2556.0,39.665]
[1748100067063,3.91358797,2555.2,2555.1,25.6885]
[1748100067265,3.91358797,2555.2,2555.1,32.4625]
[1748100067440,3.91358797,2555.2,2555.1,43.44]
[1748100067639,3.91358797,2555.2,2555.1,51.44]
[1748100067844,4.2793096,2555.2,2555.1,51.44]
[1748100068044,4.2793096,2555.2,2555.1,24.938]
[1748100068240,12.01341056,2555.2,2555.1,31.712]
[1748100068431,11.97413228,2555.2,2555.1,31.712]
[1748100068657,11.60841065,2555.2,2555.1,31.712]
[1748100068859,11.18055816,2555.2,2555.1,39.712]
[1748100069033,11.18055816,2555.2,2555.1,51.44]
[1748100069034,4.27813548,2555.2,2555.1,51.44]
[1748100069863,3.91358797,2555.2,2555.1,51.44]
[1748100071456,3.91358797,2555.2,2555.1,24.938]
[1748100071661,5.74504443,2555.2,2555.1,51.441]
[1748100073962,3.91358797,2555.2,2555.1,51.441]
[1748100074354,9.81358797,2555.2,2555.1,51.441]
[1748100075244,11.44682848,2555.2,2555.1,51.441]
[1748100079377,3.91358797,2555.2,2555.1,52.2296]
[1748100079582,5.9,2555.8,2555.3,0.7886]
[1748100079782,3.91297542,2555.6,2555.5,8.7886]
[1748100080082,3.91297542,2555.6,2555.5,23.5656]
[1748100081175,3.91297542,2555.6,2555.5,35.2826]
[1748100081756,5.28555519,2555.6,2555.5,8.7886]
[1748100081989,5.28555519,2555.6,2555.5,34.494]
[1748100082199,7.11701165,2555.6,2555.5,34.494]
[1748100082491,3.91358797,2555.2,2555.1,17.7408]
[1748100082649,3.91358797,2555.2,2555.1,44.2328]
[1748100082850,3.91358797,2555.2,2555.1,52.2328]
[1748100086550,3.91358797,2555.2,2555.1,40.5038]
[1748100086756,4.69629233,2555.2,2555.1,51.43]
[1748100087291,5.06205914,2555.2,2555.1,51.43]
[1748100088255,4.69629233,2555.2,2555.1,51.43]
[1748100088480,4.27935459,2555.2,2555.1,51.43]
[1748100088930,4.27935459,2555.2,2555.1,52.224]
[1748100089401,3.91358797,2555.2,2555.1,52.224]
[1748100090032,3.91358797,2555.2,2555.1,51.43]
[1748100090194,3.91358797,2555.2,2555.1,39.701]
[1748100090530,4.77770233,2555.2,2555.1,51.43]
[1748100090827,5.14348751,2555.2,2555.1,51.43]
[1748100091027,6.97494397,2555.2,2555.1,24.938]
[1748100091215,6.97494397,2555.2,2555.1,31.701]
[1748100091724,6.9749802,2555.2,2555.1,31.701]
[1748100092082,6.9749802,2555.2,2555.1,39.701]
[1748100092814,6.60915879,2555.2,2555.1,39.701]
[1748100092982,6.97497889,2555.2,2555.1,39.701]
[1748100093396,7.79747889,2555.2,2555.1,39.701]
[1748100093727,7.79749194,2555.2,2555.1,39.701]
[1748100094678,7.79749068,2555.2,2555.1,39.701]
[1748100095817,7.79748475,2555.2,2555.1,39.701]
[1748100096322,7.79748475,2555.2,2555.1,21.50444097]
[1748100096698,7.43165879,2555.2,2555.1,21.50444097]
[1748100096901,7.79748318,2555.2,2555.1,21.50444097]
[1748100097811,8.3470884,2555.2,2555.1,6.74044097]
[1748100097995,8.3470884,2555.2,2555.1,21.50544097]
[1748100098526,3.91481365,2554.4,2554.3,12.5405]
[1748100098845,3.91481365,2554.4,2554.3,27.3055]
[1748100099122,3.91481365,2554.4,2554.3,51.389]
[1748100102122,3.91481365,2554.4,2554.3,24.893]
[1748100102317,3.91481365,2554.4,2554.3,51.391]
[1748100103789,5.5081635,2554.4,2554.3,31.66]
[1748100104099,5.5081635,2554.4,2554.3,39.66]
[1748100104528,7.33961996,2554.4,2554.3,39.66]
[1748100104835,7.70467002,2554.4,2554.3,39.66]
[1748100105737,7.70466743,2554.4,2554.3,39.66]
[1748100107687,7.33961996,2554.4,2554.3,39.66]
[1748100107887,7.70467112,2554.4,2554.3,39.66]
[1748100108927,7.70466798,2554.4,2554.3,39.66]
[1748100109825,7.33961996,2554.4,2554.3,39.66]
[1748100110025,7.70466844,2554.4,2554.3,39.66]
[1748100110688,7.33961996,2554.4,2554.3,39.66]
[1748100110884,7.70466582,2554.4,2554.3,39.66]
[1748100111203,19.98866582,2554.4,2554.3,16.893]
[1748100111633,19.62361996,2554.4,2554.3,16.893]
[1748100111789,5.26442019,2554.2,2554.1,0.05]
[1748100111998,9.87664993,2554.2,2554.1,0.05]
[1748100112734,10.23960812,2554.2,2554.1,0.05]
[1748100114409,9.87664993,2554.2,2554.1,0.05]
[1748100114601,10.23982562,2554.2,2554.1,0.05]
[1748100115642,10.23982949,2554.2,2554.1,0.05]
[1748100116343,9.87664993,2554.2,2554.1,0.05]
[1748100116556,3.91665361,2553.2,2553.1,0.05]
[1748100116911,3.91665361,2553.2,2553.1,8.05]
[1748100119233,3.91665361,2553.2,2553.1,8.8196]
[1748100121513,3.91650021,2553.3,2553.2,0.7696]
[1748100121715,3.91641244,2553.4,2553.2,0.7696]
[1748100122050,3.91650021,2553.3,2553.2,0.7696]
[1748100124622,3.91650021,2553.3,2553.2,20.5066]
[1748100124950,3.91640224,2553.4,2553.3,8.7696]
[1748100127867,5.9,2554.1,2553.4,0.7837]
[1748100128159,5.9,2554.5,2553.7,0.7837]
[1748100128365,3.91542678,2554.0,2553.9,8.7837]
[1748100128573,3.91542678,2554.0,2553.9,23.5487]
[1748100129325,3.91518292,2554.2,2554.0,0.7837]
[1748100129545,5.9,2554.8,2554.0,0.7837]
[1748100129750,3.91435393,2554.7,2554.0,0.7837]
[1748100130157,3.91389432,2555.0,2554.0,0.7837]
[1748100130358,3.91513936,2554.2,2554.0,0.7837]
[1748100130561,3.91501445,2554.3,2554.0,0.8259]
[1748100130725,3.91418153,2554.9,2554.2,0.8259]
[1748100130930,3.9146604,2554.5,2554.4,8.8259]
[1748100131131,3.9146604,2554.5,2554.4,40.4879]
[1748100132551,3.91249122,2556.0,2554.4,40.4879]
[1748100132552,3.91284871,2555.7,2554.5,0.8259]
[1748100132749,3.91458333,2554.6,2554.5,0.8259]
[1748100132922,3.91431303,2554.8,2554.5,0.8259]
[1748100133262,3.91284241,2555.7,2554.7,0.8259]
[1748100133422,3.91420072,2554.8,2554.7,0.8259]
[1748100133628,3.91420072,2554.8,2554.7,20.5609]
[1748100138841,3.91420072,2554.8,2554.7,8.8259]
[1748100139029,3.91420072,2554.8,2554.7,35.3189]
[1748100142378,3.96266798,2555.9,2554.8,8.0]
[1748100142583,3.91374041,2555.2,2554.9,0.7949]
[1748100142873,3.9138463,2555.1,2554.9,0.7949]
[1748100143041,3.91389432,2555.0,2554.9,0.7949]
[1748100143427,3.91382307,2555.1,2554.9,0.7949]
[1748100144062,3.91389432,2555.0,2554.9,0.7949]
[1748100144230,3.91389432,2555.0,2554.9,35.2939]
[1748100145245,3.91381989,2555.1,2555.0,8.0]
[1748100146369,3.91381989,2555.1,2555.0,8.7575]
[1748100146771,0.05,2555.9,2555.4,0.7575]
[1748100146934,3.91325994,2555.5,2555.4,0.7575]
[1748100147134,3.91325994,2555.5,2555.4,52.1455]
[1748100148673,3.91325994,2555.5,2555.4,25.6485]
[1748100148872,3.91325994,2555.5,2555.4,52.1435]
[1748100149850,3.91325994,2555.5,2555.4,51.386]
[1748100151287,4.67905994,2555.5,2555.4,24.891]
[1748100151485,5.53826572,2555.5,2555.4,51.385]
[1748100151888,4.77246572,2555.5,2555.4,51.385]
[1748100152091,3.91325994,2555.5,2555.4,43.385]
[1748100152256,3.91325994,2555.5,2555.4,51.385]
[1748100158001,3.91286785,2555.7,2555.5,8.0]
[1748100158294,3.91311239,2555.6,2555.5,8.0]
[1748100158796,3.91311239,2555.6,2555.5,8.784]
[1748100164200,3.91311239,2555.6,2555.5,20.511]
[1748100165999,3.91311239,2555.6,2555.5,19.727]
[1748100169284,3.91312854,2555.5,2555.4,16.891]
[1748100169515,3.91312854,2555.5,2555.4,43.381]
[1748100170215,5.16619942,2555.5,2555.4,43.381]
[1748100170519,5.97589942,2555.5,2555.4,51.38]
[1748100170693,6.34201501,2555.5,2555.4,51.38]
[1748100170901,6.34201501,2555.5,2555.4,16.891]
[1748100171101,6.34201501,2555.5,2555.4,43.38]
[1748100171409,6.34201501,2555.5,2555.4,51.38]
[1748100171586,5.97589942,2555.5,2555.4,31.654]
[1748100171793,6.34204789,2555.5,2555.4,43.38]
[1748100172127,6.34204789,2555.5,2555.4,51.38]
[1748100172315,5.97589942,2555.5,2555.4,51.38]
[1748100172518,6.34206886,2555.5,2555.4,51.38]
[1748100173029,5.97589942,2555.5,2555.4,51.381]
[1748100173253,6.34243712,2555.5,2555.4,51.381]
[1748100174139,6.34243762,2555.5,2555.4,51.381]
[1748100175138,6.34125641,2555.5,2555.4,51.381]
[1748100176239,5.97589942,2555.5,2555.4,51.381]
[1748100176425,6.34125648,2555.5,2555.4,51.381]
[1748100176936,3.91527348,2554.1,2554.0,0.7797]
[1748100177122,3.91527348,2554.1,2554.0,44.1477]
[1748100177302,3.91527348,2554.1,2554.0,52.1477]
[1748100178006,4.74618448,2555.3,2554.2,0.7797]
[1748100178267,3.91470644,2554.5,2554.4,8.7797]
[1748100178535,3.91470644,2554.5,2554.4,23.5317]
[1748100181121,3.91470644,2554.5,2554.4,35.2607]
[1748100185654,3.91470644,2554.5,2554.4,34.482]
[1748100186519,3.91470644,2554.5,2554.4,22.752]
[1748100186719,3.91470644,2554.5,2554.4,34.482]
[1748100187958,6.7326,2555.1,2554.5,0.7797]
[1748100188144,3.91450716,2554.6,2554.5,0.7797]
[1748100188656,3.91443401,2554.7,2554.5,0.7797]
[1748100189113,3.91450716,2554.6,2554.5,0.7797]
[1748100193381,3.91481365,2554.4,2554.3,0.7502]
[1748100193600,3.91481365,2554.4,2554.3,27.2342]
[1748100193900,3.91481365,2554.4,2554.3,35.2342]
[1748100194399,3.91481365,2554.4,2554.3,8.7502]
[1748100194564,3.91481365,2554.4,2554.3,34.484]
[1748100194760,3.91481365,2554.4,2554.3,22.754]
[1748100195075,3.91481365,2554.4,2554.3,34.484]
[1748100199908,3.91481365,2554.4,2554.3,22.754]
[1748100200116,3.91481365,2554.4,2554.3,34.484]
[1748100201818,3.91481365,2554.4,2554.3,34.485]
[1748100205119,3.91481365,2554.4,2554.3,22.755]
[1748100205419,3.91481365,2554.4,2554.3,34.485]
[1748100206833,3.91481365,2554.4,2554.3,51.377]
[1748100207206,4.77498106,2554.4,2554.3,16.892]
[1748100207424,5.53938106,2554.4,2554.3,43.375]
[1748100207627,5.53938106,2554.4,2554.3,51.375]
[1748100207820,5.53938106,2554.4,2554.3,43.375]
[1748100208342,5.53938106,2554.4,2554.3,51.375]
[1748100209120,5.53938106,2554.4,2554.3,24.892]
[1748100209321,5.53938106,2554.4,2554.3,51.377]
[1748100209818,5.90580321,2554.4,2554.3,51.377]
[1748100210017,5.90580321,2554.4,2554.3,43.377]
[1748100210214,5.53938106,2554.4,2554.3,51.377]
[1748100210440,5.90579883,2554.4,2554.3,51.377]
[1748100211400,5.53938106,2554.4,2554.3,51.377]
[1748100211596,5.90579833,2554.4,2554.3,51.377]
[1748100213343,5.905803,2554.4,2554.3,24.892]
[1748100213498,5.905803,2554.4,2554.3,51.379]
[1748100213901,5.90580491,2554.4,2554.3,51.379]